bitfinex/quotes_ETHUSD_20240722
["timestamp","ask_amount","ask_price","bid_price","bid_amount"]
[1721673555926,3.0,3478.8,3477.8,2.3076]
[1721673555927,2.87484,3478.5,3477.9,2.87525]
[1721673556092,2.87484,3478.5,3478.0,1.258285]
[1721673556093,2.87488,3478.4,3478.0,1.258285]
[1721673557529,2.87469,3478.7,3478.0,1.258285]
[1721673557730,2.87485,3478.5,3478.0,4.133495]
[1721673557891,5.74972,3478.5,3478.0,4.133495]
[1721673558098,2.87485,3478.5,3478.0,4.133495]
[1721673558293,2.87472,3478.6,3478.1,3.8067155]
[1721673559103,5.74951,3478.6,3478.1,3.8067155]
[1721673559327,2.87485,3478.5,3478.1,0.9316455]
[1721673559603,2.87471,3478.7,3478.1,3.8067555]
[1721673559803,2.87461,3478.8,3478.1,3.8067555]
[1721673559804,2.87472,3478.6,3478.1,3.8067555]
[1721673560110,2.87472,3478.6,3478.2,0.79402805]
[1721673560648,2.87496,3478.4,3478.2,0.79402805]
[1721673560814,2.87496,3478.4,3478.0,1.258285]
[1721673560815,2.87493,3478.4,3478.0,1.258285]
[1721673561346,2.87502,3478.3,3478.0,1.258285]
[1721673561723,2.8751,3478.2,3478.0,1.258285]
[1721673562056,2.8751,3478.2,3477.8,2.3076]
[1721673562753,2.87497,3478.3,3477.8,5.18293]
[1721673563252,2.87505,3478.2,3477.8,5.18293]
[1721673563425,2.87465,3478.7,3477.8,2.3076]
[1721673563758,2.8751,3478.2,3477.8,2.3076]
[1721673565221,2.87495,3478.4,3477.8,5.18293]
[1721673565422,2.87505,3478.2,3477.8,2.3076]
[1721673565818,2.87495,3478.4,3477.8,2.3076]
[1721673566023,2.87495,3478.4,3477.9,2.87528]
[1721673566220,2.87477,3478.6,3477.9,1.28277285]
[1721673567023,2.87484,3478.5,3478.0,2.87516]
[1721673567440,2.87494,3478.4,3477.9,4.15802285]
[1721673567850,2.87494,3478.4,3477.9,7.03326285]
[1721673568062,2.8748,3478.5,3478.0,2.87519]
[1721673568637,2.87489,3478.4,3477.9,1.28277285]
[1721673568827,2.87498,3478.3,3477.9,1.28277285]
[1721673569861,2.87485,3478.5,3478.0,4.26171429]
[1721673570032,3.0,3479.2,3478.2,2.87502]
[1721673570033,2.87472,3478.6,3478.2,2.87502]
[1721673570236,2.87483,3478.5,3478.1,2.87512]
[1721673571741,2.87483,3478.5,3478.0,4.26177429]
[1721673573453,2.87446,3479.0,3478.0,4.26177429]
[1721673573648,5.87447,3478.9,3478.1,2.87509]
[1721673573850,5.86684046,3478.9,3478.0,4.26177429]
[1721673574152,2.99237046,3478.9,3478.1,2.87513]
[1721673574530,2.99237046,3478.9,3478.2,2.87505]
[1721673575342,2.99237046,3478.9,3478.2,3.71700971]
[1721673575551,2.99237046,3478.9,3478.2,3.71695971]
[1721673576331,2.99237046,3478.9,3478.2,6.59195971]
[1721673576640,2.99237046,3478.9,3478.2,3.71694971]
[1721673576949,2.8746,3478.8,3478.2,3.71694971]
[1721673578063,2.87465,3478.7,3478.2,3.71694971]
[1721673579969,2.87465,3478.7,3478.2,6.59194971]
[1721673580344,3.80165,3478.7,3478.2,6.59195971]
[1721673580729,3.80165,3478.7,3478.2,3.71694971]
[1721673580935,6.67636,3478.7,3478.2,3.71694971]
[1721673581364,3.80165,3478.7,3478.2,3.71694971]
[1721673581741,2.87517,3478.1,3477.7,7.4]
[1721673581944,3.80217,3478.1,3477.7,7.4]
[1721673582139,2.87522,3478.0,3477.7,7.4]
[1721673582874,3.80213,3478.1,3477.7,7.4]
[1721673583458,3.80213,3478.1,3477.7,8.955907]
[1721673584094,2.87521,3478.0,3477.7,8.955907]
[1721673585675,2.87533,3477.9,3477.7,1.555907]
[1721673585882,2.87533,3477.9,3477.4,2.8757]
[1721673586048,2.87521,3478.0,3477.5,2.87561]
[1721673586372,2.8753,3477.9,3477.4,2.8757]
[1721673586538,2.87521,3478.0,3477.4,5.75127]
[1721673586738,2.87521,3478.0,3477.5,1.554057]
[1721673587294,2.3818,3478.2,3477.2,9.7893]
[1721673587295,2.87541,3477.8,3477.2,9.7893]
[1721673587595,2.87543,3477.8,3477.2,10.27583]
[1721673587769,2.87547,3477.7,3477.2,10.27583]
[1721673589577,2.87552,3477.7,3477.2,10.27583]
[1721673591034,2.87521,3478.0,3477.4,2.87563]
[1721673592172,2.87521,3478.0,3477.5,2.87557]
[1721673593579,2.87543,3477.8,3477.3,2.87579]
[1721673594310,2.87553,3477.7,3477.2,7.4]
[1721673594595,2.87553,3477.7,3477.2,10.27582]
[1721673594894,2.87568,3477.5,3477.2,7.4]
[1721673595894,2.87579,3477.3,3477.2,7.4]
[1721673596387,5.75158,3477.3,3477.2,7.4]
[1721673597692,2.87601,3477.1,3476.6,12.57083]
[1721673597890,2.87601,3477.1,3476.6,6.715566]
[1721673599348,2.87604,3477.0,3476.6,6.715566]
[1721673599678,2.87604,3477.0,3476.6,3.839236]
[1721673599849,2.87604,3477.0,3476.6,2.2945]
[1721673600486,2.87604,3477.0,3476.6,5.17087]
[1721673600991,2.87557,3477.6,3476.6,5.17087]
[1721673601292,2.87604,3477.0,3476.6,2.2945]
[1721673602191,2.87593,3477.2,3476.6,5.17082]
[1721673602377,2.4433,3477.7,3476.7,3.393362]
[1721673602706,2.87593,3477.2,3476.7,3.393362]
[1721673603003,2.87576,3477.4,3476.8,2.87619]
[1721673603347,2.87559,3477.6,3476.9,2.87611]
[1721673603608,2.87567,3477.5,3477.0,2.87603]
[1721673604048,2.87567,3477.5,3477.0,3.5029102]
[1721673604391,2.87564,3477.5,3477.0,3.5029702]
[1721673606177,3.80264,3477.5,3477.0,3.5029702]
[1721673606368,0.927,3477.5,3477.0,3.5029202]
[1721673606594,0.927,3477.5,3477.1,2.87591]
[1721673607459,3.80262,3477.5,3477.1,2.87591]
[1721673608695,0.927,3477.5,3477.1,2.87591]
[1721673609526,2.87499,3478.3,3477.2,2.89019805]
[1721673609527,3.80211,3478.2,3477.2,2.89019805]
[1721673609682,2.4663,3478.3,3477.2,2.89019805]
[1721673609683,2.87497,3478.3,3477.8,2.87532]
[1721673610083,0.927,3478.2,3477.6,2.87546]
[1721673610283,2.8753,3477.9,3477.6,0.575112]
[1721673610492,2.87539,3477.8,3477.6,0.575112]
[1721673610732,2.8753,3477.9,3477.6,0.575112]
[1721673611086,2.87538,3477.8,3477.6,0.575112]
[1721673611287,2.87538,3477.8,3477.3,2.87579]
[1721673611702,2.87546,3477.7,3477.2,2.83268402]
[1721673611896,2.4663,3478.0,3476.9,2.87607]
[1721673611897,3.80275,3477.4,3476.9,2.87607]
[1721673612096,3.80275,3477.4,3476.7,15.633312]
[1721673612097,0.927,3477.2,3476.7,0.517082]
[1721673612314,0.927,3477.2,3476.9,2.87611]
[1721673612795,2.87579,3477.3,3476.9,2.87611]
[1721673613611,2.87592,3477.2,3476.7,3.393362]
[1721673614126,6.17594,3477.4,3476.8,2.87618]
[1721673614322,5.24894,3477.4,3476.8,4.36061275]
[1721673614623,2.8756,3477.6,3477.0,2.87602]
[1721673615323,2.87583,3477.3,3476.8,4.36062275]
[1721673615831,2.87588,3477.2,3476.8,4.36062275]
[1721673616132,2.87548,3477.7,3476.8,1.48443275]
[1721673616291,2.87601,3477.1,3476.6,2.87631]
[1721673617014,2.87589,3477.2,3476.7,2.87628]
[1721673618036,5.75182,3477.2,3476.7,2.87628]
[1721673618213,2.87589,3477.2,3476.7,2.87628]
[1721673618415,5.75183,3477.2,3476.7,2.87628]
[1721673618711,2.87589,3477.2,3476.5,9.8824]
[1721673618913,2.87604,3477.0,3476.6,0.98824]
[1721673619093,2.87596,3477.1,3476.6,3.8646]
[1721673619495,5.75198,3477.1,3476.6,3.8646]
[1721673619690,2.87596,3477.1,3476.6,3.8646]
[1721673620512,2.87584,3477.3,3476.8,2.8762]
[1721673620938,3.0,3477.6,3477.0,2.876]
[1721673621120,3.0,3477.6,3476.8,2.87616]
[1721673621121,2.87571,3477.4,3476.9,2.87608]
[1721673621921,2.8758,3477.3,3476.7,1.662351]
[1721673622251,2.87587,3477.2,3476.8,4.4170901]
[1721673622618,2.87587,3477.2,3476.8,1.5409301]
[1721673622917,2.8758,3477.3,3476.8,1.5409301]
[1721673623111,2.8758,3477.3,3476.8,4.4170901]
[1721673623333,2.8758,3477.3,3476.9,2.87612]
[1721673623741,2.8758,3477.3,3476.9,3.60545301]
[1721673624113,3.0,3477.6,3477.0,2.87604]
[1721673624315,5.3463,3477.9,3477.2,2.87585]
[1721673624514,2.87506,3478.2,3477.1,2.2675]
[1721673624749,2.87506,3478.2,3477.4,2.87565]
[1721673624951,2.87506,3478.2,3477.7,2.87546]
[1721673625468,2.87492,3478.4,3477.9,2.87529]
[1721673626151,2.87492,3478.4,3477.8,0.05750032]
[1721673626317,2.87496,3478.3,3477.8,2.93285032]
[1721673626519,2.87487,3478.5,3477.9,2.87529]
[1721673627342,2.8749,3478.4,3477.9,2.87529]
[1721673627545,2.87476,3478.6,3477.9,3.45605803]
[1721673627724,2.87476,3478.6,3478.0,2.87517]
[1721673627915,2.87465,3478.7,3478.2,2.87504]
[1721673628137,2.87465,3478.7,3477.9,0.58081803]
[1721673628138,2.87472,3478.6,3478.1,2.87511]
[1721673628958,2.87451,3478.9,3478.2,2.87504]
[1721673629309,2.87463,3478.7,3478.2,2.87504]
[1721673629977,5.74934,3478.7,3478.2,2.87504]
[1721673630282,2.87463,3478.7,3478.2,2.87504]
[1721673631359,5.74907,3478.9,3478.2,2.875]
[1721673631576,5.8746,3478.8,3478.1,2.87507]
[1721673631880,3.0,3478.8,3478.3,2.87496]
[1721673632188,3.0,3478.9,3478.5,2.8748]
[1721673632545,2.87455,3478.8,3478.3,2.87496]
[1721673632749,2.87455,3478.8,3478.1,0.5723388]
[1721673632975,2.87455,3478.8,3477.8,2.2675]
[1721673633243,2.87476,3478.6,3478.1,2.87508]
[1721673633465,2.87476,3478.6,3477.9,2.87524]
[1721673633672,2.87485,3478.5,3478.0,2.87519]
[1721673635384,2.87485,3478.5,3478.0,2.87516]
[1721673636169,2.87469,3478.7,3478.0,3.389416]
[1721673636369,2.87472,3478.6,3478.1,2.87513]
[1721673636802,2.8748,3478.5,3478.0,0.514266]
[1721673637092,2.87492,3478.4,3478.0,2.8752]
[1721673637307,2.8748,3478.5,3478.0,2.8752]
[1721673638076,2.8748,3478.5,3477.4,2.87568]
[1721673638077,2.87501,3478.3,3477.7,2.87541]
[1721673638464,2.87501,3478.3,3477.8,2.87537]
[1721673638978,2.87505,3478.2,3477.8,2.87537]
[1721673639564,2.87505,3478.2,3477.7,2.87545]
[1721673639870,2.87505,3478.2,3477.7,3.44702605]
[1721673640068,0.927,3478.0,3477.5,9.6881]
[1721673640268,0.927,3478.0,3476.9,0.927]
[1721673640269,3.80226,3478.0,3477.1,21.9281]
[1721673640482,0.927,3477.8,3477.3,2.87579]
[1721673640690,2.87538,3477.8,3477.3,2.87579]
[1721673640874,3.80226,3478.0,3477.4,2.87565]
[1721673640875,0.927,3478.0,3477.4,2.87565]
[1721673641072,2.87534,3477.9,3477.4,2.87565]
[1721673641493,3.80221,3478.0,3477.5,2.87562]
[1721673641674,0.927,3478.0,3477.6,2.87553]
[1721673641997,2.875,3478.3,3477.8,2.87537]
[1721673642300,2.875,3478.3,3477.2,2.87585]
[1721673642301,5.87505,3478.2,3477.6,5.751]
[1721673642477,5.87505,3478.2,3477.6,2.87547]
[1721673642672,5.87505,3478.2,3477.7,2.87541]
[1721673642877,3.0,3478.2,3477.7,2.87541]
[1721673643078,2.87513,3478.1,3477.7,2.87541]
[1721673643270,2.87513,3478.1,3477.6,2.87554]
[1721673643672,2.87513,3478.1,3477.6,5.75104]
[1721673644004,2.87509,3478.2,3477.6,2.87554]
[1721673644181,5.87515,3478.1,3477.6,2.87554]
[1721673644883,2.87542,3477.8,3477.3,2.87578]
[1721673645218,2.3105,3477.9,3477.3,2.87578]
[1721673645387,3.80228,3478.0,3477.3,2.87578]
[1721673645570,3.0,3478.1,3477.4,2.87566]
[1721673645906,3.927,3478.2,3477.6,2.8755]
[1721673646104,2.87517,3478.1,3477.6,2.8755]
[1721673646310,3.927,3478.2,3477.6,2.8755]
[1721673646495,3.0,3478.2,3477.7,2.87544]
[1721673646832,2.87472,3478.6,3477.6,0.28755]
[1721673646833,2.87496,3478.3,3477.9,2.87525]
[1721673647013,2.87496,3478.3,3477.8,2.87538]
[1721673647612,2.87496,3478.3,3477.8,2.87532]
[1721673650021,2.87501,3478.3,3477.6,2.87549]
[1721673650311,3.0,3478.6,3477.8,2.87537]
[1721673650515,2.8751,3478.2,3477.6,5.75097]
[1721673650720,2.8751,3478.2,3477.6,2.87548]
[1721673651021,2.8751,3478.2,3477.7,2.87544]
[1721673651181,2.87497,3478.3,3477.7,2.8754]
[1721673651379,5.4431,3478.7,3477.4,2.4944]
[1721673651380,5.4431,3478.7,3478.0,2.87514]
[1721673651582,5.4431,3478.7,3477.9,2.87522]
[1721673651880,2.3153,3479.0,3478.2,2.87498]
[1721673652081,2.3153,3479.0,3478.0,2.4993]
[1721673652082,2.87444,3479.0,3478.4,2.87483]
[1721673652679,2.87455,3478.8,3478.2,2.875]
[1721673652886,2.87462,3478.8,3478.2,2.875]
[1721673653125,2.87461,3478.8,3478.2,2.875]
[1721673653430,2.87465,3478.7,3478.2,2.875]
[1721673653934,2.87486,3478.5,3478.0,5.3745]
[1721673654413,5.74949,3478.6,3478.0,2.8752]
[1721673654618,2.87472,3478.6,3478.0,5.75033]
[1721673654816,5.32291,3478.8,3478.0,2.87513]
[1721673654817,2.87464,3478.7,3478.0,2.87513]
[1721673655139,2.87484,3478.5,3477.9,2.87527]
[1721673655433,2.4483,3478.8,3477.7,5.32509]
[1721673655604,2.87501,3478.3,3477.8,2.87535]
[1721673655943,2.87501,3478.3,3477.9,2.87527]
[1721673656732,2.87501,3478.3,3477.7,2.4497]
[1721673657053,2.87485,3478.5,3477.8,2.87537]
[1721673657203,2.87488,3478.4,3477.9,2.87524]
[1721673657528,2.87485,3478.5,3478.0,2.87515]
[1721673657529,2.8748,3478.5,3478.0,2.87515]
[1721673657704,2.8748,3478.5,3478.0,5.7503]
[1721673657895,5.74939,3478.7,3478.1,2.87508]
[1721673658116,2.87451,3478.9,3477.7,5.32514]
[1721673658328,5.2622,3479.2,3478.3,2.87494]
[1721673658329,5.87457,3478.8,3478.3,2.87494]
[1721673658490,2.87457,3478.8,3478.3,2.87494]
[1721673658692,2.87467,3478.7,3478.2,2.87504]
[1721673659226,5.2622,3479.2,3477.9,2.87522]
[1721673659227,2.87492,3478.4,3477.9,2.87522]
[1721673659434,2.87492,3478.4,3477.9,2.87529]
[1721673659742,2.87492,3478.4,3477.8,2.87537]
[1721673660096,2.87497,3478.3,3477.8,2.87532]
[1721673660335,2.87497,3478.3,3477.8,2.87533]
[1721673660540,2.87497,3478.3,3477.7,2.87545]
[1721673660693,2.87513,3478.1,3477.6,10.27554]
[1721673660889,2.87513,3478.1,3477.6,13.047879]
[1721673661520,2.87505,3478.2,3477.7,2.87545]
[1721673662106,2.87513,3478.1,3477.6,13.047879]
[1721673662431,2.87482,3478.5,3477.8,2.87532]
[1721673662603,2.87488,3478.4,3477.9,2.87527]
[1721673663229,2.4088,3478.8,3477.9,2.87527]
[1721673663230,2.87485,3478.5,3477.9,2.87527]
[1721673663432,5.74971,3478.5,3477.7,2.8754]
[1721673663729,2.87496,3478.3,3477.8,4.4133339]
[1721673664103,2.8748,3478.5,3478.0,2.87519]
[1721673665117,2.87475,3478.6,3478.0,2.87519]
[1721673665327,2.87488,3478.5,3478.0,2.87519]
[1721673665740,2.8749,3478.4,3478.0,2.87519]
[1721673666756,2.87475,3478.6,3478.0,2.87519]
[1721673666757,2.87475,3478.6,3478.1,2.4779]
[1721673666963,2.87485,3478.5,3478.1,2.4779]
[1721673667132,2.87475,3478.6,3478.1,2.4779]
[1721673667332,2.8748,3478.5,3478.1,2.4779]
[1721673667827,2.8748,3478.5,3478.1,5.35301]
[1721673668030,2.87489,3478.4,3478.1,2.4779]
[1721673668225,2.87505,3478.2,3477.7,5.23674]
[1721673668561,2.87505,3478.2,3477.6,7.4]
[1721673668562,2.87526,3478.0,3477.6,7.4]
[1721673671529,5.75055,3478.0,3477.6,7.4]
[1721673671933,2.3766,3478.3,3477.4,2.3613]
[1721673672272,2.87542,3477.8,3477.4,2.3613]
[1721673673529,2.87526,3478.0,3477.4,2.3613]
[1721673673726,2.87531,3477.9,3477.4,5.23696]
[1721673674567,2.87512,3478.2,3477.6,2.87549]
[1721673674768,3.0,3478.1,3477.6,2.87549]
[1721673675141,3.0,3478.1,3477.7,2.87544]
[1721673675360,3.0,3478.1,3477.8,2.87536]
[1721673675674,2.87498,3478.3,3477.8,2.87536]
[1721673675675,3.0,3478.2,3477.8,2.87536]
[1721673676462,3.0,3478.2,3477.9,2.87529]
[1721673676642,3.0,3478.3,3477.9,5.29319]
[1721673677248,3.0,3478.3,3477.9,2.4179]
[1721673677565,5.87497,3478.3,3477.9,2.4179]
[1721673677941,2.87505,3478.2,3477.9,2.4179]
[1721673678148,3.0,3478.1,3477.9,2.4179]
[1721673678347,5.87497,3478.3,3477.9,2.4179]
[1721673678547,2.87509,3478.2,3477.6,5.3031]
[1721673678746,3.0,3478.1,3477.6,5.30309]
[1721673678933,3.0,3478.1,3477.8,2.87533]
[1721673679273,3.0,3478.2,3477.8,2.87533]
[1721673679573,5.87511,3478.2,3477.7,2.87545]
[1721673680282,2.87513,3478.1,3477.7,2.87545]
[1721673681969,2.87513,3478.1,3477.6,5.30314]
[1721673682181,2.87522,3478.0,3477.6,5.30314]
[1721673682339,5.8751,3478.2,3477.6,5.30309]
[1721673682540,3.02148241,3478.1,3477.7,2.87545]
[1721673682848,2.87517,3478.1,3477.7,2.87545]
[1721673683788,2.87534,3477.9,3477.4,2.87566]
[1721673683952,2.87534,3477.9,3477.5,2.87562]
[1721673684475,3.0,3478.2,3477.2,2.4313]
[1721673684679,1.7,3478.6,3477.1,7.4]
[1721673684680,2.87561,3477.6,3477.1,7.4]
[1721673684850,2.87561,3477.6,3477.0,2.87599]
[1721673685283,2.4001,3478.0,3477.0,2.87598]
[1721673685487,2.87546,3477.7,3477.1,2.8759]
[1721673685638,5.75099,3477.7,3477.1,2.8759]
[1721673685840,2.87546,3477.7,3477.1,2.8759]
[1721673686063,2.87546,3477.7,3477.2,2.87586]
[1721673686266,2.87546,3477.7,3477.3,2.87578]
[1721673686452,2.87535,3477.9,3477.3,2.87573]
[1721673686666,0.14632913,3477.8,3477.4,2.87569]
[1721673686838,2.87501,3478.3,3477.1,3.249618]
[1721673687038,2.87521,3478.0,3477.5,2.87558]
[1721673687274,0.14632894,3477.9,3477.4,2.8757]
[1721673687487,0.14632894,3477.8,3477.4,2.8757]
[1721673687784,5.75049,3478.0,3477.4,2.8757]
[1721673687942,0.14632895,3477.9,3477.4,2.8757]
[1721673688142,2.87521,3478.0,3477.4,2.8757]
[1721673688143,0.14632895,3477.8,3477.4,2.8757]
[1721673688354,5.75056,3478.0,3477.4,2.87565]
[1721673688555,0.14632861,3477.9,3477.4,2.87565]
[1721673688767,2.87527,3478.0,3477.4,2.87565]
[1721673688976,3.02167861,3477.9,3477.4,2.87565]
[1721673689136,2.87535,3477.9,3477.4,5.75131]
[1721673689362,2.87535,3477.9,3477.4,2.87565]
[1721673689642,2.87542,3477.8,3477.1,3.249618]
[1721673689872,2.87542,3477.8,3477.1,2.4313]
[1721673690051,2.87542,3477.8,3477.3,2.87577]
[1721673691345,2.87535,3477.9,3477.3,2.87577]
[1721673691766,2.87535,3477.9,3477.4,2.87571]
[1721673692284,2.87542,3477.8,3477.2,2.8758]
[1721673692452,6.690053,3478.2,3477.1,2.4313]
[1721673692658,2.87562,3477.6,3476.9,2.87607]
[1721673692871,2.87562,3477.6,3477.0,2.87596]
[1721673693252,2.87563,3477.5,3477.0,2.87596]
[1721673693486,2.87554,3477.7,3477.0,2.87596]
[1721673693859,2.87559,3477.6,3477.1,2.87591]
[1721673694399,2.87559,3477.6,3477.1,5.75182]
[1721673694589,2.87546,3477.7,3477.2,2.87583]
[1721673695698,2.87538,3477.8,3477.3,2.87573]
[1721673696391,2.87538,3477.8,3477.4,2.87569]
[1721673697479,2.4961,3478.1,3477.1,0.801422]
[1721673697480,2.87513,3478.1,3477.6,2.8755]
[1721673697679,2.87523,3478.0,3477.6,2.8755]
[1721673699165,2.87523,3478.0,3477.4,2.4162]
[1721673699368,2.87543,3477.8,3477.3,2.87578]
[1721673699662,2.87521,3478.0,3477.3,2.87578]
[1721673699874,2.87521,3478.0,3477.3,2.87574]
[1721673699875,2.87543,3477.8,3477.3,2.87574]
[1721673700071,2.87543,3477.8,3477.3,2.87575]
[1721673700579,2.8753,3477.9,3477.4,2.8757]
[1721673703207,2.87518,3478.1,3477.4,2.8757]
[1721673703376,5.75069,3477.9,3477.4,2.8757]
[1721673703576,2.87523,3478.0,3477.4,2.87565]
[1721673703776,2.87523,3478.0,3477.6,2.87552]
[1721673704866,2.87523,3478.0,3477.4,5.7513]
[1721673705068,2.87531,3477.9,3477.2,7.4]
[1721673705379,2.87531,3477.9,3477.5,2.8756]
[1721673705576,2.87521,3478.0,3477.5,2.8756]
[1721673706470,2.87521,3478.0,3477.6,2.87553]
[1721673706675,2.87513,3478.1,3477.6,2.87553]
[1721673707010,2.87523,3478.0,3477.6,2.87553]
[1721673707571,2.87523,3478.0,3477.5,2.87562]
[1721673707779,2.87513,3478.1,3477.6,2.8755]
[1721673708407,2.87521,3478.0,3477.6,2.8755]
[1721673708700,2.87521,3478.0,3477.5,2.87562]
[1721673710114,3.8021,3478.2,3477.7,2.87546]
[1721673710115,0.927,3478.2,3477.7,2.87546]
[1721673710271,3.927,3478.2,3477.8,2.87537]
[1721673710473,6.80207,3478.2,3477.8,2.87537]
[1721673710721,6.80207,3478.2,3477.3,1.1406822]
[1721673710722,9.67719,3478.2,3477.7,2.87545]
[1721673710924,0.14631223,3478.1,3477.7,2.87545]
[1721673711109,6.80207,3478.2,3477.7,2.87545]
[1721673711302,0.1463118,3478.1,3477.7,2.87545]
[1721673711500,6.80207,3478.2,3477.7,2.87545]
[1721673711714,0.14631082,3478.1,3477.7,2.87545]
[1721673711943,6.80207,3478.2,3477.7,2.87545]
[1721673712223,0.14631189,3478.1,3477.7,5.28885]
[1721673712421,3.927,3478.2,3477.7,5.28881]
[1721673712627,2.99848363,3479.5,3477.7,5.28881]
[1721673712628,0.927,3478.9,3477.7,4.156844]
[1721673712833,0.14630482,3478.8,3478.2,2.4134]
[1721673713040,0.14630482,3478.7,3478.6,2.87471]
[1721673713501,5.17424,3479.3,3478.8,2.87451]
[1721673713829,0.14628133,3479.2,3478.8,2.87449]
[1721673714044,2.87414,3479.3,3478.8,5.74898]
[1721673714340,0.14626345,3479.2,3478.8,2.87449]
[1721673714504,2.87403,3479.5,3478.8,2.87449]
[1721673714705,0.14626227,3479.4,3479.0,2.87436]
[1721673714890,0.14626227,3479.3,3479.0,2.87436]
[1721673715091,5.74807,3479.5,3479.0,2.87436]
[1721673715321,3.0203211,3479.4,3478.8,2.87448]
[1721673715634,0.14626366,3479.3,3478.8,2.8745]
[1721673715841,2.87406,3479.4,3478.8,2.8745]
[1721673716030,3.02041457,3479.3,3478.8,2.8745]
[1721673716204,2.87415,3479.3,3478.8,2.8745]
[1721673718506,2.87415,3479.3,3478.6,2.87465]
[1721673718704,2.87415,3479.3,3478.5,10.27475]
[1721673718705,2.87448,3478.9,3478.5,7.4]
[1721673719109,2.87471,3478.6,3478.5,7.4]
[1721673719320,2.87455,3478.8,3477.9,7.4]
[1721673719321,2.8746,3478.8,3477.9,7.4]
[1721673719507,2.87501,3478.3,3477.9,7.4]
[1721673719701,3.0,3478.7,3477.9,7.4]
[1721673719702,2.87472,3478.6,3477.9,7.4]
[1721673719906,2.87519,3478.1,3477.9,7.4]
[1721673721044,5.2504,3478.5,3477.9,7.4]
[1721673721242,2.87485,3478.5,3477.9,10.27525]
[1721673721445,5.87488,3478.4,3477.9,10.27525]
[1721673721629,3.0,3478.4,3477.9,13.15048]
[1721673721970,5.74952,3478.6,3477.9,13.15048]
[1721673721971,2.87497,3478.3,3477.9,7.4]
[1721673722523,2.87497,3478.3,3477.8,2.87537]
[1721673723912,2.87497,3478.3,3477.6,2.87547]
[1721673724146,2.87509,3478.2,3477.7,2.87544]
[1721673725021,2.87509,3478.2,3477.7,2.87541]
[1721673725239,2.87513,3478.1,3477.4,9.7291]
[1721673725547,2.87526,3478.0,3477.4,9.7291]
[1721673725748,2.87494,3478.4,3477.7,2.87545]
[1721673725947,2.87509,3478.2,3477.7,2.87545]
[1721673726131,5.7502,3478.2,3477.7,2.87545]
[1721673726334,2.87493,3478.4,3477.6,2.87549]
[1721673726515,2.87493,3478.4,3477.6,1.37452722]
[1721673726717,2.87509,3478.2,3477.7,2.87544]
[1721673728318,2.87512,3478.2,3477.6,4.25006722]
[1721673728527,3.0,3478.5,3477.6,4.25001722]
[1721673728528,2.87502,3478.3,3477.6,4.25001722]
[1721673728727,2.87509,3478.2,3477.7,2.87546]
[1721673730961,2.87509,3478.2,3477.7,5.75087]
[1721673731116,3.0,3478.5,3477.7,1.68544972]
[1721673731321,2.87475,3478.6,3478.0,2.4337]
[1721673731621,3.0,3479.0,3478.0,2.4337]
[1721673731622,5.8748,3478.5,3478.0,2.4337]
[1721673732137,2.875,3478.3,3477.8,2.87533]
[1721673732720,2.875,3478.3,3477.7,3.99114972]
[1721673732721,2.87509,3478.2,3477.7,3.99114972]
[1721673732963,2.87513,3478.1,3477.7,2.3057]
[1721673733166,2.3161,3478.4,3477.4,12.58136]
[1721673733321,2.3161,3478.4,3477.4,9.7057]
[1721673733322,2.87542,3477.8,3477.4,9.7057]
[1721673733952,2.875,3478.3,3477.4,9.7057]
[1721673734123,2.87542,3477.8,3477.4,7.4]
[1721673734494,2.87542,3477.8,3477.2,2.87585]
[1721673734644,2.87542,3477.8,3477.2,5.75164]
[1721673734960,2.87542,3477.8,3477.3,2.87576]
[1721673737367,2.87526,3478.0,3477.1,2.3057]
[1721673737526,2.87526,3478.0,3477.2,1.258179]
[1721673737929,2.3161,3478.4,3477.3,2.87573]
[1721673738234,2.87525,3478.0,3477.5,2.87558]
[1721673739576,2.87525,3478.0,3477.5,2.87557]
[1721673740057,2.87534,3477.9,3477.4,2.8757]
[1721673740665,2.87524,3478.0,3477.5,2.87557]
[1721673740885,2.87513,3478.1,3477.6,2.87553]
[1721673741090,2.87523,3478.0,3477.6,2.8755]
[1721673741655,5.19103,3478.4,3477.7,2.87545]
[1721673741857,2.87505,3478.2,3477.7,3.52063989]
[1721673742056,5.75017,3478.2,3477.7,3.52063989]
[1721673742277,2.87505,3478.2,3477.7,3.52063989]
[1721673742690,2.875,3478.3,3477.8,2.87534]
[1721673743288,2.87505,3478.2,3477.8,2.87534]
[1721673743471,2.87513,3478.1,3477.7,3.00178989]
[1721673743674,2.875,3478.3,3477.7,3.00178989]
[1721673743675,2.87505,3478.2,3477.8,0.87528299]
[1721673744856,5.87484,3478.5,3478.0,2.87521]
[1721673745207,3.0,3478.5,3478.1,2.8751]
[1721673745495,2.87476,3478.6,3478.1,2.8751]
[1721673746292,0.927,3478.8,3478.1,2.87508]
[1721673747904,2.87464,3478.7,3478.2,2.875]
[1721673748102,0.927,3478.8,3477.9,2.87524]
[1721673748103,2.87484,3478.5,3477.9,2.87524]
[1721673748307,2.87488,3478.4,3477.9,2.87524]
[1721673748493,2.87488,3478.4,3477.9,5.75047]
[1721673748810,2.8748,3478.5,3478.1,2.87512]
[1721673749168,5.74939,3478.7,3477.7,3.92878989]
[1721673749370,2.87469,3478.7,3478.1,2.87508]
[1721673749591,2.87472,3478.6,3478.1,2.87508]
[1721673750189,2.87472,3478.6,3478.1,5.75015]